bitfinex/quotes_BTCUSD_20250822
["timestamp","ask_amount","ask_price","bid_price","bid_amount"]
[1755855817033,0.52902716,113130.0,113120.0,0.8425126]
[1755855817411,0.19062681,113130.0,113120.0,0.8425126]
[1755855817623,0.52902716,113130.0,113120.0,0.8425126]
[1755855818026,0.52902716,113130.0,113120.0,0.8454926]
[1755855818207,0.52902716,113130.0,113120.0,0.61187295]
[1755855818392,0.52902716,113130.0,113120.0,0.43506956]
[1755855818596,0.86742751,113130.0,113120.0,0.57879956]
[1755855818799,0.19062681,113130.0,113120.0,0.76075295]
[1755855819225,0.52902716,113130.0,113120.0,0.76075295]
[1755855819940,0.19062681,113130.0,113120.0,0.76075295]
[1755855820159,0.52902716,113130.0,113120.0,0.8476226]
[1755855820761,0.52902716,113130.0,113120.0,0.76075295]
[1755855821117,0.01383905,113130.0,113120.0,0.76075295]
[1755855821324,0.52902716,113130.0,113120.0,0.76075295]
[1755855821961,0.3522394,113130.0,113120.0,0.76075295]
[1755855822385,0.3521921,113130.0,113120.0,0.76075295]
[1755855823118,0.01383905,113130.0,113120.0,0.76075295]
[1755855823319,0.3521921,113130.0,113120.0,0.76075295]
[1755855823761,0.52897986,113130.0,113120.0,0.76075295]
[1755855824627,0.3521921,113130.0,113120.0,0.76075295]
[1755855824842,0.52897986,113130.0,113120.0,0.76075295]
[1755855825049,0.19062681,113130.0,113120.0,0.76075295]
[1755855825268,0.3521921,113130.0,113120.0,0.76075295]
[1755855825485,0.3521921,113130.0,113120.0,0.8476226]
[1755855827110,0.52897986,113130.0,113120.0,0.8476226]
[1755855827314,0.3521921,113130.0,113120.0,0.8476226]
[1755855827757,0.52897986,113130.0,113120.0,0.8476226]
[1755855830277,0.3521921,113130.0,113120.0,0.8476226]
[1755855830902,0.3521921,113130.0,113120.0,0.8466226]
[1755855831107,0.52897986,113130.0,113120.0,0.8466226]
[1755855833386,0.52897986,113130.0,113120.0,0.8643526]
[1755855833536,0.52897986,113130.0,113120.0,0.8466226]
[1755855835692,0.19062681,113130.0,113120.0,0.8466226]
[1755855836106,0.19062681,113130.0,113120.0,0.75975295]
[1755855837614,0.19260681,113130.0,113120.0,0.75967295]
[1755855838535,0.19062681,113130.0,113120.0,0.75967295]
[1755855841378,0.19062681,113130.0,113120.0,0.75867295]
[1755855841584,0.19062681,113130.0,113120.0,0.75967295]
[1755855841791,0.19062681,113130.0,113120.0,0.75867295]
[1755855842140,0.19062681,113130.0,113120.0,0.76067295]
[1755855843278,0.19062681,113130.0,113120.0,0.76167295]
[1755855843658,0.01383905,113130.0,113120.0,0.8485426]
[1755855843882,0.01383905,113130.0,113120.0,1.18689565]
[1755855844354,0.67288368,113140.0,113130.0,0.17678776]
[1755855844548,0.1858388,113140.0,113130.0,0.36262163]
[1755855844690,0.52412368,113140.0,113130.0,0.36262163]
[1755855845126,0.52412368,113140.0,113130.0,0.38920263]
[1755855845836,0.52610368,113140.0,113130.0,0.48011487]
[1755855846028,0.1878188,113140.0,113130.0,0.48011487]
[1755855846233,0.52610368,113140.0,113130.0,0.48011487]
[1755855846832,0.53994188,113140.0,113130.0,0.48011487]
[1755855847041,0.87822676,113140.0,113130.0,0.32616487]
[1755855847251,0.201657,113140.0,113130.0,0.47492487]
[1755855847449,0.53994188,113140.0,113130.0,0.48011487]
[1755855848981,0.201657,113140.0,113130.0,0.47797487]
[1755855849174,0.53994188,113140.0,113130.0,0.32616487]
[1755855849378,0.53994188,113140.0,113130.0,0.47492487]
[1755855849802,0.87822676,113140.0,113130.0,0.47492487]
[1755855850442,0.87622676,113140.0,113130.0,0.47492487]
[1755855850634,0.87622676,113140.0,113130.0,0.32616487]
[1755855851047,0.87622676,113140.0,113130.0,0.49884381]
[1755855851448,0.87622676,113140.0,113130.0,0.47492487]
[1755855853049,0.87622676,113140.0,113130.0,0.49884367]
[1755855853879,1.02692676,113140.0,113130.0,0.3181998]
[1755855854294,0.350357,113140.0,113130.0,0.3181998]
[1755855854536,1.02692676,113140.0,113130.0,0.3181998]
[1755855854939,1.02692676,113140.0,113130.0,0.3171998]
[1755855855181,1.36692676,113140.0,113130.0,0.2906188]
[1755855855384,1.36792676,113140.0,113130.0,0.2667]
[1755855855531,1.36792676,113140.0,113130.0,0.2906188]
[1755855857711,1.36792676,113140.0,113130.0,0.0239188]
[1755855859610,1.35408856,113140.0,113130.0,0.0239188]
[1755855859817,1.35210856,113140.0,113130.0,0.0239188]
[1755855860244,1.35407856,113140.0,113130.0,0.0239188]
[1755855861086,0.17678776,113130.0,113120.0,0.49780667]
[1755855861287,0.51507264,113130.0,113120.0,0.49780667]
[1755855861504,0.51705264,113130.0,113120.0,0.49780667]
[1755855862376,0.66577264,113130.0,113120.0,0.49780667]
[1755855862592,0.66577264,113130.0,113120.0,0.49880667]
[1755855862794,0.67961162,113130.0,113120.0,0.49880667]
[1755855863504,0.67961162,113130.0,113120.0,0.23210667]
[1755855864325,0.67961162,113130.0,113120.0,0.08338667]
[1755855865631,1.0178965,113130.0,113120.0,0.08338667]
[1755855865830,0.77085451,113130.0,113120.0,0.0515028]
[1755855866030,0.94764227,113130.0,113120.0,0.0515028]
[1755855866368,0.94764227,113130.0,113120.0,0.027584]
[1755855867382,0.94764227,113130.0,113120.0,0.030784]
[1755855868205,0.32748776,113130.0,113120.0,0.032874]
[1755855868410,1.00401752,113130.0,113120.0,0.032874]
[1755855869377,1.01785652,113130.0,113120.0,0.032874]
[1755855873099,1.01785652,113130.0,113120.0,0.027584]
[1755855874672,1.01785652,113130.0,113120.0,0.030784]
[1755855875840,1.01785652,113130.0,113120.0,0.06266787]
[1755855877184,1.01785652,113130.0,113120.0,0.06475787]
[1755855877708,1.01785652,113130.0,113120.0,0.032874]
[1755855878058,1.01785652,113130.0,113120.0,0.030784]
[1755855878533,1.01781652,113130.0,113120.0,0.030784]
[1755855878795,1.01781652,113130.0,113120.0,0.06266787]
[1755855884093,1.01781652,113130.0,113120.0,0.05946787]
[1755855885124,1.01781652,113130.0,113120.0,0.06266787]
[1755855885749,0.67953164,113130.0,113120.0,0.06266787]
[1755855886155,0.67953164,113130.0,113120.0,0.05946787]
[1755855886309,1.01978652,113130.0,113120.0,0.027584]
[1755855886515,0.68150164,113130.0,113120.0,0.001]
[1755855887294,0.68250164,113130.0,113120.0,0.001]
[1755855887953,0.63239401,113130.0,113110.0,0.175185]
[1755855888210,0.51708838,113120.0,113110.0,0.026585]
[1755855888454,0.66368827,113120.0,113110.0,0.029715]
[1755855889530,0.66368827,113120.0,113110.0,0.030715]
[1755855892509,0.66368827,113120.0,113110.0,0.032705]
[1755855893694,0.32540339,113120.0,113110.0,0.032705]
[1755855893930,0.66368827,113120.0,113110.0,0.030715]
[1755855894208,0.66364827,113120.0,113110.0,0.030715]
[1755855894934,0.32536339,113120.0,113110.0,0.030715]
[1755855895162,0.66364827,113120.0,113110.0,0.030715]
[1755855895368,0.51508827,113120.0,113110.0,0.032705]
[1755855896308,0.17680339,113120.0,113110.0,0.032705]
[1755855896812,0.51508827,113120.0,113110.0,0.2986039]
[1755855897051,0.51508827,113120.0,113110.0,0.29639367]
[1755855897735,0.51508827,113120.0,113110.0,0.20952402]
[1755855898162,0.51508827,113120.0,113110.0,0.24140789]
[1755855898913,0.51508827,113120.0,113110.0,0.50810789]
[1755855899455,0.17680339,113120.0,113110.0,0.50810789]
[1755855899847,0.51508827,113120.0,113110.0,0.50810789]
[1755855900244,0.51508827,113120.0,113110.0,0.33128887]
[1755855900824,0.51508827,113120.0,113110.0,0.50810789]
[1755855901052,0.51508827,113120.0,113110.0,0.59499264]
[1755855901390,0.19064324,113120.0,113110.0,0.59499264]
[1755855901518,0.52892812,113120.0,113110.0,0.59499264]
[1755855903568,0.19064324,113120.0,113110.0,0.59499264]
[1755855903762,0.19064324,113120.0,113110.0,0.61272264]
[1755855903763,0.52892812,113120.0,113110.0,0.61272264]
[1755855903969,0.52892812,113120.0,113110.0,0.59499264]
[1755855905624,0.19064324,113120.0,113110.0,0.74351264]
[1755855905821,0.52892812,113120.0,113110.0,0.74351264]
[1755855906426,0.52892812,113120.0,113110.0,0.56669362]
[1755855906658,0.867213,113120.0,113110.0,0.56669362]
[1755855907679,0.867213,113120.0,113110.0,0.41817362]
[1755855907886,0.867213,113120.0,113110.0,0.74351264]
[1755855908345,0.867213,113120.0,113110.0,0.56669362]
[1755855909378,0.867213,113120.0,113110.0,0.41817362]
[1755855909594,0.867213,113120.0,113110.0,0.56470362]
[1755855909925,0.19064324,113120.0,113110.0,0.56470362]
[1755855910123,0.867213,113120.0,113110.0,0.56669362]
[1755855910347,0.867213,113120.0,113110.0,0.41817362]
[1755855910542,0.867213,113120.0,113110.0,0.56470362]
[1755855912171,0.867213,113120.0,113110.0,0.56669362]
[1755855913868,0.867213,113120.0,113110.0,0.58442362]
[1755855914133,0.867213,113120.0,113110.0,0.56669362]
[1755855914787,0.867213,113120.0,113110.0,0.56665362]
[1755855916393,0.867213,113120.0,113110.0,0.56153362]
[1755855916894,0.867213,113120.0,113110.0,0.41817362]
[1755855917116,0.867213,113120.0,113110.0,0.47464887]
[1755855918369,0.867213,113120.0,113110.0,0.47770887]
[1755855918638,0.19064324,113120.0,113110.0,0.47770887]
[1755855918850,0.867213,113120.0,113110.0,0.47770887]
[1755855919273,0.19064324,113120.0,113110.0,0.47770887]
[1755855919499,0.867213,113120.0,113110.0,0.47770887]
[1755855920917,0.19064324,113120.0,113110.0,0.47978887]
[1755855921123,0.867213,113120.0,113110.0,0.47978887]
[1755855923989,0.867213,113120.0,113110.0,0.33130887]
[1755855924197,0.19064324,113120.0,113110.0,0.47974887]
[1755855924401,0.52892812,113120.0,113110.0,0.47974887]
[1755855925035,0.867213,113120.0,113110.0,0.65656789]
[1755855925212,0.867213,113120.0,113110.0,0.47974887]
[1755855925361,0.867213,113120.0,113110.0,0.65656789]
[1755855926397,0.867213,113120.0,113110.0,0.7043207]
[1755855926802,0.867213,113120.0,113110.0,0.65656789]
[1755855927464,0.867213,113120.0,113110.0,0.7043207]
[1755855929108,0.96554728,113140.0,113120.0,0.17680339]
[1755855929313,0.85507264,113130.0,113120.0,0.17680339]
[1755855929525,0.85507264,113130.0,113120.0,0.17888339]
[1755855929964,0.85507264,113130.0,113120.0,0.23735026]
[1755855930206,0.85507264,113130.0,113120.0,0.24041026]
[1755855930740,0.51778776,113130.0,113120.0,0.24041026]
[1755855930972,0.85607264,113130.0,113120.0,0.24041026]
[1755855931347,0.51778776,113130.0,113120.0,0.24041026]
[1755855931569,0.85607264,113130.0,113120.0,0.24041026]
[1755855932257,0.86991199,113130.0,113120.0,0.24041026]
[1755855932518,0.53062711,113130.0,113120.0,0.24041026]
[1755855932734,0.01383935,113130.0,113120.0,0.73624992]
[1755855932953,0.01383935,113130.0,113120.0,0.39796504]
[1755855933141,0.35212423,113130.0,113120.0,0.52544782]
[1755855933842,0.35212423,113130.0,113120.0,0.49356395]
[1755855934062,0.35212423,113130.0,113120.0,0.51129395]
[1755855934292,0.01383935,113130.0,113120.0,0.49456395]
[1755855934959,0.35212423,113130.0,113120.0,0.49456395]
[1755855935471,0.35212423,113130.0,113120.0,0.52641979]
[1755855936107,0.01383935,113130.0,113120.0,0.52641979]
[1755855936519,0.35212423,113130.0,113120.0,0.52641979]
[1755855939533,0.01383935,113130.0,113120.0,0.47866698]
[1755855939745,0.35212423,113130.0,113120.0,0.33026698]
[1755855939967,0.35212423,113130.0,113120.0,0.47866698]
[1755855940389,0.35212423,113130.0,113120.0,0.52641979]
[1755855940598,0.01383935,113130.0,113120.0,0.59674367]
[1755855940807,0.01383935,113130.0,113120.0,0.63624951]
[1755855941236,0.35212423,113130.0,113120.0,0.63624951]
[1755855941481,0.35212423,113130.0,113120.0,0.56592563]
[1755855941904,0.01383935,113130.0,113120.0,0.56592563]
[1755855942136,0.01383935,113130.0,113120.0,0.52641979]
[1755855942357,0.35212423,113130.0,113120.0,0.52641979]
[1755855942802,0.01383935,113130.0,113120.0,0.54386881]
[1755855943022,0.01383935,113130.0,113120.0,1.95672975]
[1755855943252,1.0005,113150.0,113140.0,0.19422116]
[1755855943484,1.00054821,113150.0,113140.0,1.15890819]
[1755855943695,1.00004821,113150.0,113140.0,1.71787567]
[1755855944115,1.00004821,113150.0,113140.0,1.74444667]
[1755855944298,1.00004821,113150.0,113140.0,1.83131632]
[1755855944933,1.00004821,113150.0,113140.0,1.83331632]
[1755855945583,1.00004821,113150.0,113140.0,1.88093887]
[1755855946009,1.00004821,113150.0,113140.0,1.88193887]
[1755855946505,1.00004821,113150.0,113140.0,1.20536911]
[1755855946979,1.00004821,113150.0,113140.0,1.54340237]
[1755855947205,1.00004821,113150.0,113140.0,1.54240237]
[1755855947426,1.00004821,113150.0,113140.0,1.54040237]
[1755855947692,1.00004821,113150.0,113140.0,1.54140237]
[1755855948212,1.00004821,113150.0,113140.0,1.54240237]
[1755855948454,1.00004821,113150.0,113140.0,1.55913237]
[1755855948693,1.00004821,113150.0,113140.0,1.20236911]
[1755855948938,1.00004821,113150.0,113140.0,1.54240237]
[1755855949128,1.00004821,113150.0,113140.0,1.54440237]
[1755855951208,1.00004821,113150.0,113140.0,2.42517367]
[1755855951209,0.51263407,113150.0,113140.0,2.42517367]
[1755855951481,0.18643416,113150.0,113140.0,2.15487041]
[1755855951734,0.18643416,113150.0,113140.0,2.10724786]
[1755855951994,0.01403442,113180.0,113170.0,0.51475854]
[1755855952247,0.01403442,113180.0,113170.0,0.48107997]
[1755855952248,0.01408271,113180.0,113170.0,0.48107997]
[1755855952489,0.01408271,113180.0,113170.0,0.48312997]
[1755855952736,0.01408271,113180.0,113170.0,0.36434497]
[1755855952952,0.01408271,113180.0,113170.0,0.51266497]
[1755855953207,0.15628352,113190.0,113180.0,0.19415868]
[1755855953457,0.67924652,113190.0,113180.0,0.08688475]
[1755855953705,0.51995731,113190.0,113180.0,0.26359441]
[1755855954391,0.34326326,113190.0,113180.0,0.3226583]
[1755855954649,1.01433139,113200.0,113190.0,0.17669405]
[1755855954897,1.01638139,113200.0,113190.0,0.2635788]
[1755855955166,1.01588139,113200.0,113190.0,0.2635788]
[1755855955406,1.01588139,113200.0,113190.0,0.48630914]
[1755855955641,1.35391465,113200.0,113190.0,0.48630914]
[1755855956180,1.01788139,113200.0,113190.0,0.48630914]
[1755855956458,1.50423465,113200.0,113190.0,0.48630914]
[1755855956744,1.50223465,113200.0,113190.0,0.48630914]
[1755855956994,1.50323465,113200.0,113190.0,0.48630914]
[1755855957233,1.01688139,113200.0,113190.0,0.48630914]
[1755855957494,1.01888139,113200.0,113190.0,0.48630914]
[1755855957803,1.35491465,113200.0,113190.0,0.48630914]
[1755855958008,1.35591465,113200.0,113190.0,0.48630914]
[1755855958259,1.53576309,113200.0,113190.0,0.48630914]
[1755855958540,1.19772983,113200.0,113190.0,0.11345075]
[1755855958778,1.53576309,113200.0,113190.0,0.26173075]
[1755855959004,1.53576309,113200.0,113190.0,0.026566]
[1755855959237,1.01583139,113200.0,113190.0,0.11565942]
[1755855959472,1.01583139,113200.0,113190.0,0.29737347]
[1755855959698,1.01583139,113200.0,113190.0,0.38203445]
[1755855960169,1.35386465,113200.0,113190.0,0.38203445]
[1755855960397,1.50214465,113200.0,113190.0,0.38203445]
[1755855960596,1.50532465,113200.0,113190.0,0.37701445]
[1755855960862,1.68200309,113200.0,113190.0,0.11345075]
[1755855961093,1.68200309,113200.0,113190.0,0.026566]
[1755855961314,1.53372309,113200.0,113190.0,0.026566]
[1755855961566,1.68200309,113200.0,113190.0,0.026566]
[1755855962494,1.68096309,113200.0,113190.0,0.026566]
[1755855962682,1.68200309,113200.0,113190.0,0.026566]
[1755855966951,0.17669405,113190.0,113180.0,0.32498616]
[1755855967158,0.66510731,113190.0,113180.0,0.29015791]
[1755855968260,0.48841326,113190.0,113180.0,0.29015791]
[1755855968465,0.48841326,113190.0,113180.0,0.36502649]
[1755855968636,0.15038,113190.0,113180.0,0.36502649]
[1755855968859,0.48841326,113190.0,113180.0,0.36502649]
[1755855969498,1.19100983,113200.0,113180.0,0.39670507]
[1755855969671,1.16257139,113200.0,113190.0,0.17669405]
[1755855969902,1.16461139,113200.0,113190.0,0.20328782]
[1755855970049,1.50264465,113200.0,113190.0,0.20328782]
[1755855970237,1.35440465,113200.0,113190.0,0.20328782]
[1755855970441,1.50214465,113200.0,113190.0,0.20328782]
[1755855970838,1.67882309,113200.0,113190.0,0.20328782]
[1755855971318,1.35490465,113200.0,113190.0,0.20533782]
[1755855971512,1.50314465,113200.0,113190.0,0.20830782]
[1755855971644,1.50214465,113200.0,113190.0,0.20830782]
[1755855971875,1.50314465,113200.0,113190.0,0.18171405]
[1755855972076,1.68082309,113200.0,113190.0,0.18171405]
[1755855972336,1.50414465,113200.0,113190.0,0.21339263]
[1755855972580,1.68082309,113200.0,113190.0,0.21339263]
[1755855973221,1.16407139,113200.0,113190.0,0.30027738]
[1755855973434,1.16407139,113200.0,113190.0,0.36941288]
[1755855974179,1.50210465,113200.0,113190.0,0.36941288]
[1755855974385,1.50210465,113200.0,113190.0,0.51765288]
[1755855975168,1.35386465,113200.0,113190.0,0.51765288]
[1755855975368,1.50210465,113200.0,113190.0,0.51765288]
[1755855975837,1.16407139,113200.0,113190.0,0.51765288]
[1755855976246,1.50210465,113200.0,113190.0,0.44851738]
[1755855976494,1.48827326,113200.0,113190.0,0.44851738]
[1755855976903,1.49041326,113200.0,113190.0,0.44851738]
[1755855977373,1.49041326,113200.0,113190.0,0.30027738]
[1755855977972,1.15238,113200.0,113190.0,0.30027738]
[1755855978177,1.002,113200.0,113190.0,0.34211372]
[1755855978375,1.34029326,113200.0,113190.0,0.38963159]
[1755855979441,1.6681317,113200.0,113190.0,0.34277525]
[1755855979639,1.34392873,113200.0,113190.0,0.34277525]
[1755855979870,1.68196199,113200.0,113190.0,0.34277525]
[1755855980066,1.68196199,113200.0,113190.0,0.1660812]
[1755855980524,1.68196199,113200.0,113190.0,0.16625352]
[1755855981136,1.68196199,113200.0,113190.0,0.34294757]
[1755855981305,1.68196199,113200.0,113190.0,0.31109667]
[1755855983193,1.68196199,113200.0,113190.0,0.13440262]
[1755855983401,1.68196199,113200.0,113190.0,0.04751787]
[1755855983823,1.6681317,113200.0,113190.0,0.04751787]
[1755855984252,1.67642673,113200.0,113190.0,0.03185925]
[1755855984461,2.01445999,113200.0,113190.0,0.03185925]
[1755855984806,0.17669405,113190.0,113180.0,0.03185925]
[1755855985016,1.00661057,113190.0,113180.0,0.03185925]
[1755855985242,0.18178405,113190.0,113180.0,0.03185925]
[1755855985515,0.48898326,113190.0,113180.0,0.26131678]
[1755855986396,0.49098326,113190.0,113180.0,0.26131678]
[1755855986568,0.15299,113190.0,113180.0,0.26131678]
[1755855986775,0.48887326,113190.0,113180.0,0.26131678]
[1755855987173,0.48987326,113190.0,113180.0,0.26131678]
[1755855987378,0.66656731,113190.0,113180.0,0.26131678]
[1755855987578,0.48987326,113190.0,113180.0,0.26131678]
[1755855988015,0.15184,113190.0,113180.0,0.22945753]
[1755855988408,0.48987326,113190.0,113180.0,0.22945753]
[1755855988626,0.003,113190.0,113180.0,0.22945753]
[1755855988835,0.34103326,113190.0,113180.0,0.22945753]
[1755855989214,0.003,113190.0,113180.0,0.22945753]
[1755855989369,0.34103326,113190.0,113180.0,0.22945753]
[1755855990484,0.003,113190.0,113180.0,0.22945753]
[1755855990683,0.003,113190.0,113180.0,0.38484561]
[1755855991114,0.003,113190.0,113180.0,0.41141261]
[1755855991716,0.003,113190.0,113180.0,0.42886163]
[1755855991929,0.001,113190.0,113180.0,0.42886163]
[1755855992151,1.1493,113200.0,113190.0,0.17669405]
[1755855992332,1.1493,113200.0,113190.0,0.29758271]
[1755855992527,1.1493,113200.0,113190.0,0.30065271]
[1755855992728,1.33853326,113200.0,113190.0,0.30065271]
[1755855992931,1.33853326,113200.0,113190.0,0.44945271]
[1755855993139,1.33803326,113200.0,113190.0,0.44945271]
[1755855993337,1.33803326,113200.0,113190.0,0.57394564]
[1755855993542,1.0,113200.0,113190.0,0.57394564]
[1755855993920,1.01383016,113200.0,113190.0,0.57394564]
[1755855994117,1.35186342,113200.0,113190.0,0.57394564]
[1755855994348,1.01383016,113200.0,113190.0,0.57394564]
[1755855994549,1.01483016,113200.0,113190.0,0.57394564]
[1755855994933,1.01383016,113200.0,113190.0,0.60050964]
[1755855995607,1.01483016,113200.0,113190.0,0.60050964]
[1755855996177,1.01383016,113200.0,113190.0,0.60050964]
[1755855997129,1.35186342,113200.0,113190.0,0.60050964]
[1755855998060,1.35186342,113200.0,113190.0,0.52353458]
[1755855998279,1.50082342,113200.0,113190.0,0.52353458]
[1755855999372,1.01383016,113200.0,113190.0,0.52353458]
[1755855999590,1.01383016,113200.0,113190.0,0.49169067]
[1755855999804,1.01383016,113200.0,113190.0,0.50913969]
[1755856000025,1.01383016,113200.0,113190.0,0.59600934]
[1755856001951,1.01383016,113200.0,113190.0,0.59800934]
[1755856003614,1.01383016,113200.0,113190.0,0.95216809]
[1755856003774,1.0,113200.0,113190.0,0.95216809]
[1755856004664,1.0,113200.0,113190.0,0.80336809]
[1755856004833,1.0,113200.0,113190.0,0.95312809]
[1755856005234,1.0,113200.0,113190.0,0.80336809]
[1755856005649,1.0,113200.0,113190.0,0.95308809]
[1755856005855,1.0,113200.0,113190.0,0.61501483]
[1755856006056,1.0,113200.0,113190.0,0.61505483]
[1755856006265,1.0,113200.0,113190.0,0.46533483]
[1755856006480,1.0,113200.0,113190.0,0.61505483]
[1755856007900,1.0,113200.0,113190.0,0.46433483]
[1755856008044,1.0,113200.0,113190.0,0.61305483]
[1755856008257,1.0,113200.0,113190.0,0.61505483]
[1755856008466,1.0,113200.0,113190.0,0.46533483]
[1755856008665,1.0,113200.0,113190.0,0.61501483]
[1755856008883,1.0,113200.0,113190.0,0.52814518]
[1755856009088,1.0,113200.0,113190.0,0.53114518]
[1755856009303,1.0,113200.0,113190.0,0.46746182]
[1755856009648,1.0,113200.0,113190.0,0.31782182]
[1755856009860,1.0,113200.0,113190.0,0.46754182]
[1755856010072,1.0,113200.0,113190.0,0.53567199]
[1755856011042,1.0,113200.0,113190.0,0.38595199]
[1755856011246,1.00206,113200.0,113190.0,0.53571199]
[1755856011657,1.0,113200.0,113190.0,0.53571199]
[1755856015640,1.0,113200.0,113190.0,0.87374525]
[1755856017586,1.0,113200.0,113190.0,1.61542187]
[1755856017806,0.50821586,113200.0,113190.0,1.57677851]
[1755856018032,1e-08,113210.0,113200.0,0.55912746]
[1755856018259,1e-08,113210.0,113200.0,1.44767677]
[1755856018492,1e-08,113210.0,113200.0,0.81055081]
[1755856019145,1e-08,113210.0,113200.0,0.81455081]
[1755856019356,1e-08,113210.0,113200.0,0.81809081]
[1755856020206,1e-08,113210.0,113200.0,0.82009081]
[1755856021253,1e-08,113210.0,113200.0,0.96977081]
[1755856023301,0.99838,113250.0,113240.0,0.19406505]
[1755856023457,0.99846538,113250.0,113240.0,0.45434713]
[1755856023664,1.00367538,113250.0,113240.0,0.45434713]
[1755856024129,1.00367538,113250.0,113240.0,0.48089813]
[1755856024300,1.00367538,113250.0,113240.0,0.33125813]
[1755856024649,1.00417538,113250.0,113240.0,0.48085813]
[1755856024859,1.00617538,113250.0,113240.0,0.33125813]
[1755856025126,1.00917538,113250.0,113240.0,0.48097813]
[1755856026398,1.00917538,113250.0,113240.0,0.48093813]
[1755856027235,1.00717538,113250.0,113240.0,0.48093813]
[1755856027376,1.00367538,113250.0,113240.0,0.48093813]
[1755856027747,1.00667538,113250.0,113240.0,0.48093813]
[1755856028600,1.18327582,113250.0,113240.0,0.37110807]
[1755856028782,1.00667538,113250.0,113240.0,0.52086807]
[1755856029027,1.00667538,113250.0,113240.0,0.55254451]
[1755856029233,1.00667538,113250.0,113240.0,0.7483445]
[1755856031349,1.00667538,113250.0,113240.0,0.72458717]
[1755856031563,1.18327582,113250.0,113240.0,0.72458717]
[1755856031778,1.00667538,113250.0,113240.0,0.72458717]
[1755856033841,1.34470864,113250.0,113240.0,0.72458717]
[1755856034040,1.00667538,113250.0,113240.0,0.72458717]
[1755856035054,1.52130908,113250.0,113240.0,0.77747815]
[1755856035747,1.52130908,113250.0,113240.0,0.60086212]
[1755856035957,1.52130908,113250.0,113240.0,0.77747815]
[1755856036169,1.52130908,113250.0,113240.0,0.75092715]
[1755856036931,1.52130908,113250.0,113240.0,0.42471112]
[1755856037078,1.52130908,113250.0,113240.0,0.75092715]
[1755856037506,1.18327582,113250.0,113240.0,0.75092715]
[1755856037906,1.52130908,113250.0,113240.0,0.75092715]
[1755856038643,1.18327582,113250.0,113240.0,0.75092715]
[1755856038882,1.52130908,113250.0,113240.0,0.75092715]
[1755856039469,1.52130908,113250.0,113240.0,0.71107721]
[1755856039779,1.18327582,113250.0,113240.0,0.71107721]
[1755856039942,1.52130908,113250.0,113240.0,0.71107721]
[1755856040802,1.00347538,113250.0,113240.0,0.71107721]
[1755856041048,1.00347538,113250.0,113240.0,0.75859188]
[1755856042483,1.00347538,113250.0,113240.0,0.72691544]
[1755856042693,1.00146538,113250.0,113240.0,0.73201544]
[1755856043032,1.00146538,113250.0,113240.0,0.74946446]
[1755856043397,1.00146538,113250.0,113240.0,0.78957304]
[1755856043825,1.00349538,113250.0,113240.0,0.78957304]
[1755856043997,1.00146538,113250.0,113240.0,0.78957304]
[1755856045602,1.00146538,113250.0,113240.0,0.74205837]
[1755856046221,0.99946538,113250.0,113240.0,0.74205837]
[1755856046399,0.99946538,113250.0,113240.0,0.80570173]
[1755856046753,0.99846538,113250.0,113240.0,0.80570173]
[1755856048587,0.99846538,113250.0,113240.0,0.83225073]
[1755856049907,0.99846538,113250.0,113240.0,0.83209073]
[1755856050931,1.00049538,113250.0,113240.0,0.83233073]
[1755856051738,1.10049538,113250.0,113240.0,0.82920073]
[1755856051945,1.10049538,113250.0,113240.0,0.82727073]
[1755856054348,0.90839779,113250.0,113240.0,0.81133281]
[1755856056726,0.90839779,113250.0,113240.0,0.81446281]
[1755856057586,0.90636779,113250.0,113240.0,0.81643281]
[1755856062569,0.90636779,113250.0,113240.0,0.81615281]
[1755856064317,0.90636779,113250.0,113240.0,0.83209073]
[1755856064746,0.90661779,113250.0,113240.0,0.83209073]
[1755856064921,0.90661779,113250.0,113240.0,0.67755073]
[1755856065304,0.90661779,113250.0,113240.0,0.82691073]
[1755856067155,0.90661779,113250.0,113240.0,0.83204073]
[1755856069014,0.90661779,113250.0,113240.0,0.82691073]
[1755856070653,0.90661779,113250.0,113240.0,0.82899073]
[1755856070855,0.90661779,113250.0,113240.0,0.68279073]
[1755856071158,0.90661779,113250.0,113240.0,0.82883073]
[1755856071543,0.90661779,113250.0,113240.0,0.83199073]
[1755856076561,1.2442089,113250.0,113240.0,0.83183073]
[1755856076779,1.2442089,113250.0,113240.0,0.82867073]
[1755856078352,1.2442089,113250.0,113240.0,0.82659073]
[1755856079391,0.90661779,113250.0,113240.0,0.82659073]
[1755856079526,1.2442089,113250.0,113240.0,0.82659073]
[1755856079966,1.2442089,113250.0,113240.0,0.83183073]
[1755856082560,1.2442089,113250.0,113240.0,0.68279073]
[1755856082767,1.2442089,113250.0,113240.0,0.82651073]
[1755856084841,1.2442089,113250.0,113240.0,0.48348568]
[1755856084842,1.42080934,113250.0,113240.0,0.48348568]
[1755856085044,1.7927987,113250.0,113240.0,0.74529835]
[1755856085260,1.42385934,113250.0,113240.0,0.74529835]
[1755856085435,1.42385934,113250.0,113240.0,0.70518977]
[1755856085678,1.42385934,113250.0,113240.0,0.72633522]
[1755856086698,1.42385934,113250.0,113240.0,0.67864077]
[1755856087276,1.42385934,113250.0,113240.0,0.70519377]
[1755856088428,1.42385934,113250.0,113240.0,0.75283657]
[1755856090237,1.08626823,113250.0,113240.0,0.75283657]
[1755856090427,1.42385934,113250.0,113240.0,0.75283657]
[1755856091417,1.42137934,113250.0,113240.0,0.75283657]
[1755856093940,1.42137934,113250.0,113240.0,0.75275657]
[1755856094146,1.42137934,113250.0,113240.0,0.75271657]
[1755856094965,1.41832934,113250.0,113240.0,0.75271657]
[1755856099800,1.41832934,113250.0,113240.0,0.42742054]
[1755856100000,1.41832934,113250.0,113240.0,0.75263657]
[1755856101670,1.41832934,113250.0,113240.0,0.60403657]
[1755856101863,1.75900045,113250.0,113240.0,0.42742054]
[1755856102098,1.8458701,113250.0,113240.0,0.60775837]
[1755856102303,1.50827899,113250.0,113240.0,0.60775837]
[1755856102571,1.42140934,113250.0,113240.0,0.60775837]
[1755856103497,1.42240934,113250.0,113240.0,0.60775837]
[1755856104185,1.42440934,113250.0,113240.0,0.60775837]
[1755856104924,0.90688779,113250.0,113240.0,0.7894344]
[1755856105372,1.2444789,113250.0,113240.0,0.78942691]
[1755856105597,1.2444789,113250.0,113240.0,0.75765657]
[1755856106398,1.2434789,113250.0,113240.0,0.75765657]
[1755856106888,1.41907934,113250.0,113240.0,0.75765657]
[1755856107306,1.42107934,113250.0,113240.0,0.75765657]
[1755856107443,1.2424789,113250.0,113240.0,0.75765657]
[1755856107666,1.2434789,113250.0,113240.0,0.75765657]
[1755856108552,1.2424789,113250.0,113240.0,0.75765657]
[1755856112975,1.41907934,113250.0,113240.0,0.75761657]
[1755856113222,1.42107934,113250.0,113240.0,0.75761657]
[1755856114118,1.41907934,113250.0,113240.0,0.75761657]
[1755856114815,1.42107934,113250.0,113240.0,0.75255657]
[1755856116815,1.42107934,113250.0,113240.0,0.60403657]
[1755856117043,1.42107934,113250.0,113240.0,0.75255657]